Workbook

Sheet ProgrammerNotes (hidden)
A1: ProgrammerNotes
A3: NOTE_ID | B3: DATE | C3: NOTE
A4: 1 | B4: 2015-11-11 | C4: Put VBA functions into a code module saved with the spreadsheet
A5: 2 | B5: 2015-11-11 | C5: Coded EEXP,ERFCC, and ERFF from 1996 spreadsheets (that still work -- go figure!)
A6: 3 | B6: 2015-11-11 | C6: Some built-in functions need "WorksheetFunction.NAME" to access in VBA code

Sheet 1DRFLAH-HYDM
A1: Model Name | B1: 1D_radial_flow_leaky_aquifer_transient_hantush
A2: Model Type: | B2: Hydraulic Model
A3: References: | B3: Hantush
A5: Method:
A6: Author: | B6: Dr. T.G. Cleveland for CIVE6361/7332 Students; Spring 1995
B7: Rewrite in VBA Mac Excel 2011 Fall 2015
A8: Notes: | B8: Infinite Confined Aquifer
B9: Steady Pumping at Origin
B10: Drawdown at radial distance, r, for different time values t in leaky aquifer system
B11: Uses Polynomial approximation to well function (see references)
A12: Macros: | B12: W(U),LEAKY(U,V) | D12: Well Functions contained in Module1 as local to this worksheet macros
A15: Conversion Calculator (Use GoalSeek to find U.S Customary values for SI Units)
A16: Q | B16: 25 | C16: <=gpm | D16: =B16/7.48 -> 3.342245989 | E16: <=ft^3/min | F16: =D16*1440 -> 4812.834225 | G16: <=ft^3/day | H16: =D16/(3.25^3) -> 0.09736174024 | I16: <=m^3/min | J16: =H16*1440 -> 140.200906 | K16: <=m^3/day
A17: T | B17: 0.1722 | C17: <=ft^2/min | D17: =B17*1440 -> 247.968 | E17: <=ft^2/day | F17: =B17*7.48 -> 1.288056 | G17: <=gpm/ft | H17: =D17/(3.28^2) -> 23.04878049 | I17: <=m^2/day | J17: =H17/1440 -> 0.01600609756 | K17: <=m^2/min
A19: Input Data (must use consistent length and time units!)
A20: Item | B20: Value | C20: Units | D20: Description
A21: Q | B21: 3.34 | C21: ft^3/min | D21: Pumping well discharge (L^3/t)
A22: T | B22: 0.17 | C22: ft^2/min | D22: Aquifer transmissivity (L^2/t)
A23: S | B23: 0.0001656391137 | D23: Aquifer storage coefficient
A24: K' | B24: 5.658357609e-06 | C24: ft/min | D24: Aquitard vertical hydraulic conductivity (L/t)
A25: b' | B25: 14 | C25: ft | D25: Thickness of aquitard (L)
A26: r | B26: 96 | C26: Radial distance of observation well from pumping well (L)
A27: Computed Constants
A28: B | B28: =SQRT(B22*B25/B24) -> 648.5497299
A29: r/B | B29: =B26/B28 -> 0.1480225734
A30: Q/4pT | B30: =B21/(4*PI()*B22) -> 1.563463264
A31: Chart Title | B31: =CONCATENATE("Drawdown history at ",B26," (feet) from pumping well ") -> Drawdown history at 96 (feet) from pumping well
A32: Time
A33: Elapsed Time (min) | B33: Radial Distance (ft) | C33: u | D33: r/B | E33: W(u,r/B) | F33: Drawdown (ft) | G33: Observed Drawdown (ft) | H33: Error^2
A34: 5 | B34: 96 | C34: =(B34^2*$B$23)/(4*$B$22*A34) -> 0.448979433 | D34: =B34/$B$28 -> 0.1480225734 | E34: =LEAKY(C34,D34) -> 0.6223919492 | F34: =$B$30*E34 -> 0.9730869487 | G34: 0.96 | H34: =(F34-G34)^2 -> 0.0001712682257
A35: 28 | B35: 96 | C35: 0.08017489874 | D35: 0.1480225734 | E35: 1.973923944 | F35: =$B$30*E35 -> 3.086157573 | G35: 3.3 | H35: =(F35-G35)^2 -> 0.04572858363
A36: 41 | B36: 96 | C36: 0.05475358939 | D36: 0.1480225734 | E36: 2.302228787 | F36: 3.599450134 | G36: 3.59 | H36: 8.930503971e-05
A37: 60 | B37: 96 | C37: 0.03741495275 | D37: 0.1480225734 | E37: 2.624359049 | F37: 4.103088967 | G37: 4.08 | H37: 0.0005331003766
A38: 75 | B38: 96 | C38: 0.0299319622 | D38: 0.1480225734 | E38: 2.807508181 | F38: 4.389435905 | G38: 4.39 | H38: 3.182030793e-07
A39: 244 | B39: 96 | C39: 0.009200398217 | D39: 0.1480225734 | E39: 3.629755823 | F39: 5.674989888 | G39: 5.47 | H39: 0.04202085427
A40: 493 | B40: 96 | C40: 0.004553543945 | D40: 0.1480225734 | E40: 3.928678035 | F40: 6.142343786 | G40: 5.96 | H40: 0.03324925624
A41: 669 | B41: 96 | C41: 0.003355601143 | D41: 0.1480225734 | E41: 4.003726548 | F41: 6.259679378 | G41: 6.11 | H41: 0.0224039163
A42: 958 | B42: 96 | C42: 0.002343316456 | D42: 0.1480225734 | E42: 4.054998614 | F42: 6.33984137 | G42: 6.27 | H42: 0.004877816994
A43: 1129 | B43: 96 | C43: 0.0019883943 | D43: 0.1480225734 | E43: 4.068011415 | F43: 6.360186407 | G43: 6.4 | H43: 0.001585122188
A44: 1185 | B44: 96 | C44: 0.001894427987 | D44: 0.1480225734 | E44: 4.070886292 | F44: 6.364681172 | G44: 6.42 | H44: 0.00306017273
G46: SSE | H46: =SUM(H34:H44) -> 0.1537197142

Sheet FunctionList (hidden)
A1: List of VBA Macro functions
D2: ARGUMENTS
A3: NAME | B3: FUNCTION | C3: REFERENCE | D3: ARG-1 | E3: ARG-2 | F3: ARG-3 | G3: ARG-4 | H3: RESULT | I3: REMARKS
A4: W(U) | B4: Exponential Integral | D4: 1 | H4: =W(D4) -> 0.21938393 | I4: Tested 11 Nov 2015 against Wenzel tabulation
A5: W(U,B) | B5: Exponential Integral | D5: 1 | E5: 1 | H5: =LEAKY(D5,E5) -> 0.1840760735 | I5: Tested 11 Nov 2015 against 1995 Hunt solution
